fUST/lending_fUST_20240220
["ID","MTS","AMOUNT","RATE_DAILY","PERIOD"]
[314454783,1708366248294,-500.0,0.00027671,2]
[314454784,1708366248303,-1068.83,0.00027671,2]
[314454785,1708366248312,-994.78,0.00027671,2]
[314454786,1708366248321,-500.0,0.00027671,2]
[314454787,1708366248330,-500.0,0.00027671,2]
[314454788,1708366248341,-555.64,0.00027671,2]
[314454789,1708366248350,-500.0,0.00027671,2]
[314454790,1708366248360,-500.0,0.00027671,2]
[314454791,1708366248370,-500.0,0.00027671,2]
[314454792,1708366248379,-500.0,0.00027671,2]
[314454793,1708366248388,-500.0,0.00027671,2]
[314454794,1708366248398,-500.0,0.00027671,2]
[314454795,1708366248407,-500.0,0.00027671,2]
[314454796,1708366248416,-500.0,0.00027671,2]
[314454797,1708366248425,-500.0,0.00027671,2]
[314454798,1708366248435,-500.0,0.00027671,2]
[314454799,1708366248445,-542.52114899,0.00027671,2]
[314454800,1708366248454,-500.0,0.00027671,2]
[314454801,1708366248464,-446.33820771,0.00027671,2]
[314454802,1708366248474,-500.0,0.00027671,2]
[314454803,1708366248483,-500.0,0.00027671,2]
[314454804,1708366248493,-392.15685791,0.00027671,2]
[314454805,1708366248502,-543.38070611,0.00027671,2]
[314454806,1708366248511,-500.0,0.00027671,2]
[314454807,1708366248521,-500.0,0.00027671,2]
[314454808,1708366248530,-500.0,0.00027671,2]
[314454809,1708366248540,-259.88735926,0.00027671,2]
[314454810,1708366248549,-500.0,0.00027671,2]
[314454811,1708366248559,-596.56,0.00027671,2]
[314454812,1708366248569,-500.0,0.00027671,2]
[314454813,1708366248579,-500.0,0.00027671,2]
[314454814,1708366248589,-500.0,0.00027671,2]
[314454815,1708366248599,-500.0,0.00027671,2]
[314454816,1708366248608,-500.0,0.00027671,2]
[314454817,1708366248617,-500.0,0.00027671,2]
[314454818,1708366248627,-500.0,0.00027671,2]
[314454819,1708366248635,-623.47,0.00027671,2]
[314454820,1708366248645,-1317.61,0.00027671,2]
[314454821,1708366248778,-500.0,0.00027671,2]
[314454822,1708366248807,-500.0,0.00027671,2]
[314454823,1708366248818,-2211.12,0.00027671,2]
[314454824,1708366248827,-164.99008821,0.00027671,2]
[314454825,1708366248837,-500.0,0.00027671,2]
[314454826,1708366248847,-546.13,0.00027671,2]
[314454827,1708366248856,-1412.23,0.00027671,2]
[314454828,1708366248866,-500.0,0.00027671,2]
[314454829,1708366248875,-500.0,0.00027671,2]
[314454830,1708366248885,-656.3,0.00027671,2]
[314454831,1708366248894,-500.0,0.00027671,2]
[314454832,1708366248903,-500.0,0.00027671,2]
[314454833,1708366248912,-500.0,0.00027671,2]
[314454834,1708366248921,-500.0,0.00027671,2]
[314454835,1708366248931,-562.12,0.00027671,2]
[314454836,1708366248940,-6084.2,0.00027671,2]
[314454837,1708366248949,-500.0,0.00027671,2]
[314454838,1708366248958,-2947.31,0.00027671,2]
[314454839,1708366248967,-547.16,0.00027671,2]
[314454840,1708366248978,-174.01109417,0.00027671,2]
[314454841,1708366248987,-500.0,0.00027671,2]
[314454842,1708366248996,-652.39,0.00027671,2]
[314454843,1708366249005,-500.0,0.00027671,2]
[314454844,1708366249014,-500.0,0.00027671,2]
[314454845,1708366249023,-500.0,0.00027671,2]
[314454846,1708366249032,-500.0,0.00027671,2]
[314454847,1708366249043,-500.0,0.00027671,2]
[314454848,1708366249052,-504.33514855,0.00027671,2]
[314454849,1708366249061,-500.0,0.00027671,2]
[314454850,1708366249071,-500.0,0.00027671,2]
[314454851,1708366249080,-5468.83,0.00027671,2]
[314454852,1708366249088,-500.0,0.00027671,2]
[314454853,1708366249098,-500.0,0.00027671,2]
[314454854,1708366249107,-1336.37,0.00027671,2]
[314454855,1708366249115,-500.0,0.00027671,2]
[314454856,1708366249124,-500.0,0.00027671,2]
[314454857,1708366249134,-500.0,0.00027671,2]
[314454858,1708366249143,-500.0,0.00027671,2]
[314454859,1708366249152,-608.11,0.00027671,2]
[314454860,1708366249161,-500.0,0.00027671,2]
[314454861,1708366249170,-535.67,0.00027671,2]
[314454862,1708366249179,-500.0,0.00027671,2]
[314454863,1708366249189,-500.0,0.00027671,2]
[314454864,1708366249198,-500.0,0.00027671,2]
[314454865,1708366249207,-968.4,0.00027671,2]
[314454866,1708366249216,-500.0,0.00027671,2]
[314454867,1708366249226,-500.0,0.00027671,15]
[314454868,1708366249235,-500.0,0.00027671,2]
[314454869,1708366249245,-500.0,0.00027671,2]
[314454870,1708366249255,-500.0,0.00027671,2]
[314454871,1708366249264,-500.0,0.00027671,2]
[314454872,1708366249274,-500.0,0.00027671,2]
[314454873,1708366249285,-500.0,0.00027671,2]
[314454874,1708366249295,-500.0,0.00027671,2]
[314454875,1708366249304,-500.0,0.00027671,2]
[314454876,1708366249314,-500.0,0.00027671,2]
[314454877,1708366249323,-500.0,0.00027671,2]
[314454878,1708366249332,-500.0,0.00027671,2]
[314454879,1708366249341,-500.0,0.00027671,2]
[314454880,1708366249350,-500.0,0.00027671,2]
[314454881,1708366249361,-500.0,0.00027671,2]
[314454882,1708366249370,-500.0,0.00027671,2]
[314454883,1708366249379,-500.0,0.00027671,2]
[314454884,1708366249388,-500.0,0.00027671,2]
[314454885,1708366249398,-500.0,0.00027671,2]
[314454886,1708366249407,-500.0,0.00027671,2]
[314454887,1708366249416,-500.0,0.00027671,2]
[314454888,1708366249426,-500.0,0.00027671,2]
[314454889,1708366249435,-500.0,0.00027671,2]
[314454890,1708366249444,-1984.0,0.00027671,2]
[314454891,1708366249453,-500.0,0.00027671,2]
[314454892,1708366249463,-500.0,0.00027671,2]
[314454893,1708366249473,-500.0,0.00027671,2]
[314454894,1708366249482,-500.0,0.00027671,2]
[314454895,1708366249491,-500.0,0.00027671,2]
[314454896,1708366249501,-500.0,0.00027671,2]
[314454897,1708366249510,-619.56,0.00027671,2]
[314454898,1708366249519,-500.0,0.00027671,2]
[314454899,1708366249528,-500.0,0.00027671,2]
[314454900,1708366249537,-500.0,0.00027671,2]
[314454901,1708366249546,-500.0,0.00027671,2]
[314454902,1708366249556,-500.0,0.00027671,2]
[314454903,1708366249566,-500.0,0.00027671,2]
[314454904,1708366249575,-500.0,0.00027671,2]
[314454905,1708366249584,-500.0,0.00027671,2]
[314454906,1708366249593,-591.16731188,0.00027671,2]
[314454907,1708366249602,-800.07,0.00027671,2]
[314454908,1708366249611,-500.0,0.00027671,2]
[314454909,1708366249621,-500.0,0.00027671,2]
[314454910,1708366249631,-604.80050754,0.00027671,2]
[314454911,1708366249640,-500.0,0.00027671,2]
[314454912,1708366249649,-500.0,0.00027671,2]
[314454913,1708366249658,-918.39,0.00027671,2]
[314454914,1708366249667,-527.01219591,0.00027671,2]
[314454915,1708366249676,-500.0,0.00027671,2]
[314454916,1708366249686,-500.0,0.00027671,2]
[314454917,1708366249695,-1486.09,0.00027671,2]
[314454918,1708366249704,-500.0,0.00027671,2]
[314454919,1708366249713,-500.0,0.00027671,2]
[314454920,1708366249722,-500.0,0.00027671,2]
[314454921,1708366249732,-500.0,0.00027671,2]
[314454922,1708366249741,-500.0,0.00027671,2]
[314454923,1708366249750,-500.0,0.00027671,2]
[314454924,1708366249759,-512.22,0.00027671,2]
[314454925,1708366249768,-566.08,0.00027671,2]
[314454926,1708366249778,-500.0,0.00027671,2]
[314454927,1708366249787,-500.0,0.00027671,2]
[314454928,1708366249798,-1064.99,0.00027671,2]
[314454929,1708366249807,-500.0,0.00027671,2]
[314454930,1708366249817,-333.62431588,0.00027671,2]
[314454931,1708366249826,-779.59,0.00027671,2]
[314454932,1708366249837,-500.0,0.00027671,2]
[314454933,1708366249847,-500.0,0.00027671,2]
[314454934,1708366249857,-500.0,0.00027671,2]
[314454935,1708366249866,-500.0,0.00027671,2]
[314454936,1708366249875,-707.3,0.00027671,2]
[314454937,1708366249885,-2715.12,0.00027671,2]
[314454938,1708366249894,-500.0,0.00027671,2]
[314454939,1708366249903,-4354.51,0.00027671,2]
[314454940,1708366249913,-500.0,0.00027671,2]
[314454941,1708366249922,-730.34,0.00027671,2]
[314454942,1708366249932,-500.0,0.00027671,2]
[314454943,1708366249941,-500.0,0.00027671,2]
[314454944,1708366249950,-762.6,0.00027671,2]
[314454945,1708366249959,-500.0,0.00027671,2]
[314454946,1708366249969,-6461.04,0.00027671,2]
[314454947,1708366249980,-500.0,0.00027671,2]
[314454948,1708366249990,-2367.21,0.00027671,2]
[314454949,1708366249999,-500.0,0.00027671,2]
[314454950,1708366250008,-500.0,0.00027671,2]
[314454951,1708366250017,-500.0,0.00027671,2]
[314454952,1708366250026,-500.0,0.00027671,2]
[314454953,1708366250035,-500.0,0.00027671,2]
[314454954,1708366250044,-500.0,0.00027671,2]
[314454955,1708366250053,-872.61,0.00027671,2]
[314454956,1708366250063,-5944.51,0.00027671,2]
[314454957,1708366250073,-500.0,0.00027671,2]
[314454958,1708366250083,-500.0,0.00027671,2]
[314454959,1708366250093,-500.0,0.00027671,2]
[314454960,1708366250103,-500.0,0.00027671,2]
[314454961,1708366250113,-500.0,0.00027671,2]
[314454962,1708366250123,-500.0,0.00027671,2]
[314454963,1708366250133,-500.0,0.00027671,2]
[314454964,1708366250143,-500.0,0.00027671,2]
[314454965,1708366250155,-500.0,0.00027671,2]
[314454966,1708366250165,-500.0,0.00027671,2]
[314454967,1708366250175,-23982.7,0.00027671,2]
[314454968,1708366250185,-381.18147896,0.00027671,2]
[314454969,1708366250195,-500.0,0.00027671,2]
[314454970,1708366250205,-30584.37,0.00027671,2]
[314454971,1708366250215,-500.0,0.00027671,2]
[314454972,1708366250231,-1000.0,0.00027671,2]
[314454973,1708366250240,-500.0,0.00027671,2]
[314454974,1708366250249,-740.69,0.00027671,2]
[314454975,1708366250259,-1245.39,0.00027671,2]
[314454976,1708366250270,-500.0,0.00027671,2]
[314454977,1708366250280,-500.0,0.00027671,2]
[314454978,1708366250291,-500.0,0.00027671,2]
[314454979,1708366250302,-2474.13,0.00027671,2]
[314454980,1708366250311,-1275.92,0.00027671,2]
[314454981,1708366250321,-1315.7,0.00027671,2]
[314454982,1708366250331,-500.0,0.00027671,2]
[314454983,1708366250341,-500.0,0.00027671,2]
[314454984,1708366250350,-500.0,0.00027671,2]
[314454985,1708366250360,-21614.36,0.00027671,2]
[314454986,1708366250370,-500.0,0.00027671,2]
[314454987,1708366250380,-500.0,0.00027671,2]
[314454988,1708366250390,-15312.26,0.00027671,2]
[314454989,1708366250400,-500.0,0.00027671,2]
[314454990,1708366250409,-4282.84,0.00027671,2]
[314454991,1708366250419,-3516.89,0.00027671,2]
[314454992,1708366250428,-11001.63,0.00027671,2]
[314454993,1708366250437,-33561.85,0.00027671,2]
[314454994,1708366250447,-531.9,0.00027671,2]
[314454995,1708366250456,-500.0,0.00027671,2]
[314454996,1708366250466,-729.88,0.00027671,2]
[314454997,1708366250480,-390.0,0.00027671,2]
[314454998,1708366250490,-500.0,0.00027671,2]
[314454999,1708366250499,-151.0,0.00027671,2]
[314455000,1708366250508,-415.38325305,0.00027671,2]
[314455001,1708366250518,-15399.97,0.00027671,2]
[314455002,1708366250527,-500.0,0.00027671,2]
[314455003,1708366250537,-500.0,0.00027671,2]
[314455004,1708366250546,-3863.25,0.00027671,2]
[314455005,1708366250556,-500.0,0.00027671,2]
[314455006,1708366250565,-560.2,0.00027671,2]
[314455007,1708366250574,-656.43,0.00027671,2]
[314455008,1708366250584,-500.0,0.00027671,2]
[314455009,1708366250593,-500.0,0.00027671,2]
[314455010,1708366250604,-500.0,0.00027671,2]
[314455011,1708366250613,-3320.73,0.00027671,2]
[314455012,1708366250623,-211.1339277,0.00027671,2]
[314455013,1708366250632,-512.14567188,0.00027671,2]
[314455014,1708366250641,-4272.48,0.00027671,2]
[314455015,1708366250651,-500.0,0.00027671,2]
[314455016,1708366250660,-1896.89,0.00027671,2]
[314455017,1708366250669,-500.0,0.00027671,2]
[314455018,1708366250678,-500.0,0.00027671,2]
[314455019,1708366250688,-4402.03,0.00027671,2]
[314455020,1708366250698,-500.0,0.00027671,2]
[314455021,1708366250707,-500.0,0.00027671,2]
[314455022,1708366250717,-500.0,0.00027671,2]
[314455023,1708366250730,-1088.41,0.00027671,2]
[314455024,1708366250739,-500.0,0.00027671,2]
[314455025,1708366250749,-577.1705488,0.00027671,2]
[314455026,1708366250758,-500.0,0.00027671,2]
[314455027,1708366250768,-500.0,0.00027671,2]
[314455028,1708366250777,-1000.0,0.00027671,2]
[314455029,1708366250787,-3266.94,0.00027671,2]
[314455030,1708366250797,-500.0,0.00027671,2]
[314455031,1708366250806,-805.52,0.00027671,2]
[314455032,1708366250816,-500.0,0.00027671,2]
[314455033,1708366250825,-941.6,0.00027671,2]
[314455034,1708366250835,-500.0,0.00027671,2]
[314455035,1708366250844,-1102.06,0.00027671,2]
[314455036,1708366250854,-1655.98,0.00027671,2]
[314455037,1708366250863,-500.0,0.00027671,2]
[314455038,1708366250873,-500.0,0.00027671,2]
[314455039,1708366250882,-500.0,0.00027671,2]
[314455040,1708366250892,-4792.07,0.00027671,2]
[314455041,1708366250902,-500.0,0.00027671,2]
[314455042,1708366250912,-500.0,0.00027671,2]
[314455043,1708366250921,-500.0,0.00027671,2]
[314455044,1708366250930,-500.0,0.00027671,2]
[314455045,1708366250940,-500.0,0.00027671,2]
[314455046,1708366250950,-500.0,0.00027671,2]
[314455047,1708366250959,-500.0,0.00027671,2]
[314455048,1708366250968,-1953.34,0.00027671,2]
[314455049,1708366250980,-500.0,0.00027671,2]
[314455050,1708366250989,-3372.94,0.00027671,2]
[314455051,1708366250998,-644.54,0.00027671,2]
[314455052,1708366251008,-500.0,0.00027671,2]
[314455053,1708366251017,-500.0,0.00027671,2]
[314455054,1708366251026,-500.0,0.00027671,2]
[314455055,1708366251036,-484.46509009,0.00027671,2]
[314455056,1708366251045,-500.0,0.00027671,2]
[314455057,1708366251055,-222.38890146,0.00027749,4]
[314455058,1708366251064,-500.0,0.00027808,2]
[314455059,1708366251073,-300.0,0.00027832,2]
[314455060,1708366251083,-196.782963,0.00027895,2]
[314455061,1708366251093,-552.132471,0.00027895,2]
[314455062,1708366251103,-341.98068,0.00027895,2]
[314455063,1708366251113,-2350.81822513,0.00027913,2]
[314455064,1708366251122,-500.0,0.00027943,2]
[314455065,1708366251131,-344.95318919,0.00027943,2]
[314455066,1708366251141,-500.0,0.00027943,2]
[314455067,1708366251150,-500.0,0.00027943,2]
[314455068,1708366251160,-500.0,0.00027943,2]
[314455069,1708366251169,-500.0,0.00027943,2]
[314455070,1708366251178,-500.0,0.00027943,2]
[314455071,1708366251187,-500.0,0.00027943,2]
[314455072,1708366251197,-428.52767361,0.00027943,2]
[314455073,1708366251207,-500.0,0.00027943,2]
[314455074,1708366251217,-500.0,0.00027943,2]
[314455075,1708366251230,-500.0,0.00027943,2]
[314455076,1708366251240,-500.0,0.00027943,2]
[314455077,1708366251250,-500.0,0.00027943,2]
[314455078,1708366251260,-261.03755414,0.00027943,2]
[314455079,1708366251271,-500.0,0.00027943,2]
[314455080,1708366251285,-500.0,0.00027943,2]
[314455081,1708366251295,-500.0,0.00027943,2]
[314455082,1708366251304,-500.0,0.00027943,2]
[314455083,1708366251315,-500.0,0.00027943,2]
[314455084,1708366251326,-500.0,0.00027943,2]
[314455085,1708366251337,-289.24774469,0.00027943,2]
[314455086,1708366251346,-500.0,0.00027945,2]
[314455087,1708366251357,-500.0,0.00027945,2]
[314455088,1708366251367,-500.0,0.00027945,2]
[314455089,1708366251376,-500.0,0.00027945,2]
[314455090,1708366251386,-500.0,0.00027945,2]
[314455091,1708366251396,-500.0,0.00027945,2]
[314455092,1708366251405,-954.69,0.00027945,2]
[314455093,1708366251416,-500.0,0.00027945,2]
[314455094,1708366251425,-500.0,0.00027945,2]
[314455095,1708366251435,-500.0,0.00027945,2]
[314455096,1708366251445,-500.0,0.00027945,2]
[314455097,1708366251454,-200.0,0.00027945,2]
[314455098,1708366251464,-500.0,0.00027945,2]
[314455099,1708366251474,-1067.21,0.00027945,2]
[314455100,1708366251484,-621.77,0.00027945,2]
[314455101,1708366251493,-1291.91,0.00027945,2]
[314455102,1708366251503,-500.0,0.00027945,2]
[314455103,1708366251513,-500.0,0.00027945,2]
[314455104,1708366251523,-500.0,0.00027945,2]
[314455105,1708366251532,-500.0,0.00027945,2]
[314455106,1708366251542,-541.22,0.00027945,2]
[314455107,1708366251553,-1820.61,0.00027945,2]
[314455108,1708366251563,-500.0,0.00027945,2]
[314455109,1708366251572,-500.0,0.00027945,2]
[314455110,1708366251581,-520.0,0.00027945,2]
[314455111,1708366251591,-865.08300148,0.00027945,2]
[314455112,1708366251600,-285.93031824,0.00027945,2]
[314455113,1708366251610,-500.0,0.00027945,2]
[314455114,1708366251620,-614.62,0.00027945,2]
[314455115,1708366251630,-500.0,0.00027945,2]
[314455116,1708366251640,-500.0,0.00027945,2]
[314455117,1708366251650,-500.0,0.00027945,2]
[314455118,1708366251659,-1010.23331584,0.00027945,2]
[314455119,1708366251669,-500.0,0.00027945,2]
[314455120,1708366251678,-500.0,0.00027945,2]
[314455121,1708366251688,-500.0,0.00027945,2]
[314455122,1708366251697,-500.0,0.00027945,2]
[314455123,1708366251706,-500.0,0.00027945,2]
[314455124,1708366251716,-537.2,0.00027945,2]
[314455125,1708366251726,-532.05,0.00027945,2]
[314455126,1708366251734,-500.0,0.00027945,2]
[314455127,1708366251744,-500.0,0.00027945,2]
[314455128,1708366251753,-500.0,0.00027945,2]
[314455129,1708366251763,-500.0,0.00027945,2]
[314455130,1708366251772,-2350.38,0.00027945,2]
[314455131,1708366251781,-527.36594934,0.00027945,2]
[314455132,1708366251790,-500.0,0.00027945,2]
[314455133,1708366251800,-235.7657656,0.00027945,2]
[314455134,1708366251810,-197.29003861,0.00027945,2]
[314455135,1708366251819,-500.0,0.00027945,2]
[314455136,1708366251829,-500.0,0.00027945,2]
[314455137,1708366251839,-500.0,0.00027945,2]
[314455138,1708366251849,-500.0,0.00027945,2]
[314455139,1708366251859,-541.48836551,0.00027945,2]
[314455140,1708366251869,-500.0,0.00027945,2]
[314455141,1708366251878,-500.0,0.00027945,2]
[314455142,1708366251887,-500.0,0.00027945,2]
[314455143,1708366251897,-1153.17,0.00027945,2]
[314455144,1708366251906,-500.0,0.00027945,2]
[314455145,1708366251916,-500.0,0.00027945,2]
[314455146,1708366251926,-500.0,0.00027945,2]
[314455147,1708366251936,-1024.68,0.00027945,2]
[314455148,1708366251946,-500.0,0.00027945,2]
[314455149,1708366251955,-504.40971707,0.00027945,2]
[314455150,1708366251966,-646.29147145,0.00027945,2]
[314455151,1708366251977,-1068.83,0.00027945,2]
[314455152,1708366251986,-994.78,0.00027945,2]
[314455153,1708366251995,-500.0,0.00027945,2]
[314455154,1708366252005,-500.0,0.00027945,2]
[314455155,1708366252014,-555.64,0.00027945,2]
[314455156,1708366252023,-500.0,0.00027945,2]
[314455157,1708366252032,-500.0,0.00027945,2]
[314455158,1708366252041,-500.0,0.00027945,2]
[314455159,1708366252050,-500.0,0.00027945,2]
[314455160,1708366252059,-500.0,0.00027945,2]
[314455161,1708366252070,-500.0,0.00027945,2]
[314455162,1708366252079,-500.0,0.00027945,2]
[314455163,1708366252088,-500.0,0.00027945,2]
[314455164,1708366252097,-500.0,0.00027945,2]
[314455165,1708366252107,-500.0,0.00027945,2]
[314455166,1708366252115,-500.0,0.00027945,2]
[314455167,1708366252124,-500.0,0.00027945,2]
[314455168,1708366252134,-500.0,0.00027945,2]
[314455169,1708366252143,-500.0,0.00027945,2]
[314455170,1708366252152,-500.0,0.00027945,2]
[314455171,1708366252162,-500.0,0.00027945,2]
[314455172,1708366252171,-593.557447,0.00027945,2]
[314455173,1708366252180,-596.56,0.00027945,2]
[314455174,1708366252189,-500.0,0.00027945,2]
[314455175,1708366252199,-500.0,0.00027945,2]
[314455176,1708366252209,-500.0,0.00027945,2]
[314455177,1708366252218,-500.0,0.00027945,2]
[314455178,1708366252229,-500.0,0.00027945,2]
[314455179,1708366252238,-500.0,0.00027945,2]
[314455180,1708366252247,-623.47,0.00027945,2]
[314455181,1708366252256,-1317.61,0.00027945,2]
[314455182,1708366252266,-500.0,0.00027945,2]
[314455183,1708366252277,-490.52332656,0.00027945,2]
[314455184,1708366252291,-2211.12,0.00027945,2]
[314455185,1708366252300,-500.0,0.00027945,2]
[314455186,1708366252309,-546.13,0.00027945,2]
[314455187,1708366252453,-1412.23,0.00027945,2]
[314455188,1708366252464,-500.0,0.00027945,2]
[314455189,1708366252475,-500.0,0.00027945,2]
[314455190,1708366252485,-656.3,0.00027945,2]
[314455191,1708366252494,-500.0,0.00027945,2]
[314455192,1708366252503,-500.0,0.00027945,2]
[314455193,1708366252512,-500.0,0.00027945,2]
[314455194,1708366252522,-500.0,0.00027945,2]
[314455195,1708366252531,-562.12,0.00027945,2]
[314455196,1708366252540,-6084.2,0.00027945,2]
[314455197,1708366252550,-500.0,0.00027945,2]
[314455198,1708366252560,-2947.31,0.00027945,2]
[314455199,1708366252570,-547.16,0.00027945,2]
[314455200,1708366252579,-500.0,0.00027945,2]
[314455201,1708366252589,-652.39,0.00027945,2]
[314455202,1708366252598,-500.0,0.00027945,2]
[314455203,1708366252607,-500.0,0.00027945,2]
[314455204,1708366252617,-638.68663984,0.00027945,2]
[314455205,1708366252626,-500.0,0.00027945,2]
[314455206,1708366252635,-500.0,0.00027945,2]
[314455207,1708366252644,-206.67442428,0.00027945,2]
[314455208,1708366252653,-170.68098627,0.00027945,2]
[314455209,1708366252661,-5468.83,0.00027945,2]
[314455210,1708366252671,-500.0,0.00027945,2]
[314455211,1708366252680,-500.0,0.00027945,2]
[314455212,1708366252689,-1336.37,0.00027945,2]
[314455213,1708366252698,-500.0,0.00027945,2]
[314455214,1708366252708,-500.0,0.00027945,2]
[314455215,1708366252717,-500.0,0.00027945,2]
[314455216,1708366252728,-500.0,0.00027945,2]
[314455217,1708366252737,-608.11,0.00027945,2]
[314455218,1708366252746,-500.0,0.00027945,2]
[314455219,1708366252755,-535.67,0.00027945,2]
[314455220,1708366252765,-500.0,0.00027945,2]
[314455221,1708366252774,-500.0,0.00027945,2]
[314455222,1708366252783,-500.0,0.00027945,2]
[314455223,1708366252793,-968.4,0.00027945,2]
[314455224,1708366252802,-500.0,0.00027945,2]
[314455225,1708366252811,-500.0,0.00027945,15]
[314455226,1708366252820,-500.0,0.00027945,2]
[314455227,1708366252829,-500.0,0.00027945,2]
[314455228,1708366252839,-500.0,0.00027945,2]
[314455229,1708366252848,-500.0,0.00027945,2]
[314455230,1708366252857,-500.0,0.00027945,2]
[314455231,1708366252866,-500.0,0.00027945,2]
[314455232,1708366252876,-500.0,0.00027945,2]
[314455233,1708366252885,-500.0,0.00027945,2]
[314455234,1708366252894,-500.0,0.00027945,2]
[314455235,1708366252904,-500.0,0.00027945,2]
[314455236,1708366252913,-500.0,0.00027945,2]
[314455237,1708366252922,-500.0,0.00027945,2]
[314455238,1708366252931,-500.0,0.00027945,2]
[314455239,1708366252940,-224.70098915,0.00027945,2]
[314455240,1708366252950,-500.0,0.00027945,2]
[314455241,1708366252959,-500.0,0.00027945,2]
[314455242,1708366252968,-500.0,0.00027945,2]
[314455243,1708366252978,-500.0,0.00027945,2]
[314455244,1708366252988,-500.0,0.00027945,2]
[314455245,1708366252997,-500.0,0.00027945,2]
[314455246,1708366253006,-500.0,0.00027945,2]
[314455247,1708366253016,-500.0,0.00027945,2]
[314455248,1708366253026,-1984.0,0.00027945,2]
[314455249,1708366253035,-500.0,0.00027945,2]
[314455250,1708366253045,-500.0,0.00027945,2]
[314455251,1708366253055,-510.89514884,0.00027945,2]
[314455252,1708366253064,-500.0,0.00027945,2]
[314455253,1708366253073,-500.0,0.00027945,2]
[314455254,1708366253083,-500.0,0.00027945,2]
[314455255,1708366253092,-619.56,0.00027945,2]
[314455256,1708366253101,-500.0,0.00027945,2]
[314455257,1708366253111,-500.0,0.00027945,2]
[314455258,1708366253120,-500.0,0.00027945,2]
[314455259,1708366253130,-500.0,0.00027945,2]
[314455260,1708366253139,-500.0,0.00027945,2]
[314455261,1708366253149,-500.0,0.00027945,2]
[314455262,1708366253158,-500.0,0.00027945,2]
[314455263,1708366253168,-506.44329128,0.00027945,2]
[314455264,1708366253178,-800.07,0.00027945,2]
[314455265,1708366253187,-500.0,0.00027945,2]
[314455266,1708366253196,-322.60911897,0.00027945,2]
[314455267,1708366253205,-500.0,0.00027945,2]
[314455268,1708366253215,-500.0,0.00027945,2]
[314455269,1708366253225,-918.39,0.00027945,2]
[314455270,1708366253234,-500.0,0.00027945,2]
[314455271,1708366253243,-500.0,0.00027945,2]
[314455272,1708366253252,-1486.09,0.00027945,2]
[314455273,1708366253261,-500.0,0.00027945,2]
[314455274,1708366253273,-500.0,0.00027945,2]
[314455275,1708366253284,-615.96313964,0.00027945,2]
[314455276,1708366253294,-500.0,0.00027945,2]
[314455277,1708366253303,-500.0,0.00027945,2]
[314455278,1708366253312,-500.0,0.00027945,2]
[314455279,1708366253322,-512.22,0.00027945,2]
[314455280,1708366253331,-566.08,0.00027945,2]
[314455281,1708366253341,-500.0,0.00027945,2]
[314455282,1708366253350,-500.0,0.00027945,2]